[Event "Czech Open-GM 2022"]
[Site "Pardubice"]
[Date "2022.07.26"]
[Round "5.17"]
[White "Svanda, Ondrej"]
[Black "Crevatin, Leo"]
[Result "1/2-1/2"]
[ECO "B12"]
[WhiteElo "2363"]
[BlackElo "2259"]
[Annotator "TA"]
[PlyCount "86"]
[EventDate "2022.07.22"]
[EventType "swiss"]
[EventCountry "CZE"]
[SourceTitle "playchess.com"]
[Source "ChessBase"]
[SourceQuality "1"]
[TimeControl "40/5400+30:1800+30"]

{[%evp 9,86,12,20,4,22,18,36,31,30,27,22,27,33,0,0,0,0,0,35,36,51,49,33,33,63,48,60,73,75,50,110,68,63,52,58,61,58,36,56,0,52,0,38,40,40,24,34,37,58,12,50,0,91,33,40,35,58,41,50,10,17,0,19,-22,-20,-21,-26,-40,-50,-58,-56,-47,-41,-50,0,0,0,-77,0]} 1. e4 c6 2. d4 d5 3. e5 Bf5 4. Nd2 {[%cal Bb1d2,Bd2b3,Bb3c5][%mdl 32]} e6 5. Nb3 a6 6. Nf3 {B12: Caro-Kann: Advance Variation.} c5 7. dxc5 Bxc5 8. Nxc5 {White is slightly better.} Qa5+ 9. c3 Qxc5 10. Nd4 {Strongly threatening Be3.} Ne7 11. Nxf5 (11. Qa4+ {looks sharper.} Nd7 12. Be2 Rc8 13. O-O) 11... Nxf5 12. Bd3 Nc6 13. O-O O-O {[#]} (13... Nxe5 $2 14. Bxf5 exf5 15. Re1 $16) 14. g4 $146 {[%cal Bg2g4,Bg4g5][%mdl 2080] White has some pressure.} ({Predecessor:} 14. Qc2 g6 15. b4 Qe7 16. Bf4 d4 17. a3 dxc3 18. Qxc3 Rfd8 19. Bxf5 exf5 20. Rad1 Rxd1 21. Rxd1 {½-½ (41) Ezra,P (2232)-Lee,A (2344) Saint Louis 2022}) 14... Nh4 15. Bg5 $1 Ng6 16. Be3 Qe7 17. f4 f6 18. exf6 Qxf6 19. g5 Qf7 (19... Qe7 $14) 20. Qh5 {Hoping for Rf3.} Nce7 $1 21. Rf3 {aiming for Rh3. White is more active.} Nf5 $1 22. Rh3 {[%csl Gh3][%cal Rh5h7]} Ngh4 $1 23. Qg4 ({Much weaker is} 23. Rxh4 g6 24. Qg4 Nxe3 $11) 23... Ng6 24. Qh5 {[%csl Gh3][%cal Rh5h7]} Ngh4 $1 {Pair of Knights!} 25. Qg4 ({Don't play} 25. Rxh4 g6 26. Qg4 Nxe3 $11) 25... Ng6 26. Bc5 Rfc8 27. Bf2 Nge7 28. Re1 Rc6 29. Rf3 (29. Qe2 $14) 29... Qg6 30. Rh3 (30. a3 $14) 30... Rf8 {[#]} (30... Qf7 $11) 31. Bd4 (31. b4 $1 $16) 31... Qf7 32. Kh1 g6 33. Be5 Nc8 34. Rf3 Nb6 35. h4 Nd7 (35... Nc4 $5 {[%cal Rc4b2]}) 36. Kg2 Nxe5 37. Rxe5 Ng7 38. Rf1 Qc7 39. Qe2 Nh5 40. Qe3 Qb6 $1 41. Qd2 Qc7 (41... d4 $15 42. c4 Rc7) 42. Qe3 $11 Qb6 (42... Rb6 $11 43. b3 Ng7) 43. Qd2 $17 {[#]} Qc7 {Weighted Error Value: White=0.16 (very precise) /Black=0.11 (very precise)} (43... d4 $1 $17 44. c4 Rc7) 1/2-1/2

[Event "Czech Open-GM 2022"]
[Site "Pardubice"]
[Date "2022.07.26"]
[Round "5.18"]
[White "Gloser, David"]
[Black "Nemec, Jachym"]
[Result "1/2-1/2"]
[ECO "B33"]
[WhiteElo "2221"]
[BlackElo "2357"]
[Annotator "TA"]
[PlyCount "62"]
[EventDate "2022.07.22"]
[EventType "swiss"]
[EventCountry "CZE"]
[SourceTitle "playchess.com"]
[Source "ChessBase"]
[SourceQuality "1"]
[TimeControl "40/5400+30:1800+30"]

{[%evp 34,62,57,52,89,89,135,131,110,117,117,112,124,31,32,18,29,0,1,1,0,0,0,0,0,0,6,0,0,0,28]} 1. e4 {[%emt 0:00:03]} c5 {[%emt 0:00:30]} 2. Nf3 {[%emt 0:00:06][%cal Bg1f3,Bf3d4,Bd4b5][%mdl 32]} Nc6 {[%emt 0:00:22]} 3. d4 {[%emt 0:00:06]} cxd4 {[%emt 0:00:12]} 4. Nxd4 {[%emt 0:00:05]} Nf6 {[%emt 0:00:05]} 5. Nc3 {[%emt 0:00:04]} e5 {[%emt 0:00:04]} 6. Ndb5 {[%emt 0:00:10]} d6 {[%emt 0:00:06]} 7. Bg5 {[%emt 0:00:10]} a6 {[%emt 0:00:04]} 8. Na3 {[%emt 0:00:06]} b5 {[%emt 0:00:03]} 9. Bxf6 {[%emt 0:01:56]} gxf6 {[%emt 0:00:07]} 10. Nd5 {[%emt 0:00:09]} Bg7 {[%emt 0:00:25]} 11. Bd3 {[%emt 0:01:49]} Ne7 {[%emt 0:00:37]} 12. Nxe7 {[%emt 0:02:14]} Qxe7 {[%emt 0:00:04]} 13. O-O {[%emt 0:00:27]} f5 {[%emt 0:06:22]} 14. c4 {[%emt 0:02:14]} O-O {[%emt 0:00:23]} 15. Qh5 {[%emt 0:01:45]} Rb8 {[%emt 0:32:33]} 16. exf5 {[%emt 0:03:00]} e4 {[%emt 0:01:32]} 17. Rae1 {[%emt 0:00:20]} Bb7 {[%emt 0:01:09]} 18. Qg4 {[%emt 0:04:13][%cal Rd3e4]} bxc4 {[%emt 0:11:36] B33: Sicilian: Pelikan and Sveshnikov Variations.} 19. Bxe4 {[%emt 0:09:16]} (19. Bxc4 d5 20. Bb3 Kh8 $15) 19... Bxe4 {[%emt 0:01:14]} (19... h5 $142 20. Bxb7 Qxe1 21. Qxh5 Qe5) 20. Rxe4 $16 {[%emt 0:01:38]} Qf6 {[%emt 0:00:23] White is clearly better.} 21. Rxc4 {[%emt 0:11:34]} ({Not} 21. Nxc4 d5 22. Ne5 dxe4 $17) 21... Rxb2 {[%emt 0:00:41]} 22. Rc2 {[%emt 0:07:38]} Rfb8 {[%emt 0:01:13] [#]} 23. Rxb2 $146 {[%emt 0:08:04]} ({White should play} 23. Rc6 $16) ({Predecessor:} 23. Rd1 d5 24. g3 Qe5 25. Rxb2 Rxb2 26. Nc4 Qe2 27. Qxe2 Rxe2 28. Rxd5 Bc3 29. a3 {1-0 (42) Chekhov,S (2465)-Gladyszev,O (2438) Elets 2014}) 23... Rxb2 $14 {[%emt 0:00:24]} 24. Nc4 $40 {[%emt 0:04:33][%mdl 128] White is up to no good.} Rxa2 {[%emt 0:02:25]} 25. Qd1 {[%emt 0:05:37]} Qxf5 {[%emt 0:09:07] The position is equal.} 26. Qxd6 {[%emt 0:01:09]} h6 {[%emt 0:01:24]} 27. h3 {[%emt 0:01:59]} Kh7 {[%emt 0:01:06]} 28. Ne3 {[%emt 0:02:31]} Qg6 {[%emt 0:00:24]} 29. Qd5 {[%emt 0:01:37]} Rb2 {[%emt 0:00:46]} 30. Rc1 {[%emt 0:03:46]} Rb5 {[%emt 0:04:35]} 31. Qf3 {[%emt 0:01:40]} Rb1 {[%emt 0:02:42] Weighted Error Value: White=0.15 (very precise) /Black=0.05 (flawless)} 1/2-1/2

[Event "Czech Open-GM 2022"]
[Site "Pardubice"]
[Date "2022.07.26"]
[Round "5.19"]
[White "Soham Datar"]
[Black "Kusa, Jakub"]
[Result "1/2-1/2"]
[ECO "C80"]
[WhiteElo "2111"]
[BlackElo "2353"]
[Annotator "TA"]
[PlyCount "74"]
[EventDate "2022.07.22"]
[EventType "swiss"]
[EventCountry "CZE"]
[SourceTitle "playchess.com"]
[Source "ChessBase"]
[SourceQuality "1"]
[TimeControl "40/5400+30:1800+30"]

{[%evp 22,74,0,0,0,-38,38,37,41,42,44,12,39,14,20,0,2,0,0,0,0,0,0,0,0,0,7,0,0,0,0,0,0,0,39,37,33,0,0,0,0,0,0,-9,-14,-272,-225,-254,0,0,0,-236,0,0,0]} 1. e4 {[%emt 0:00:15]} e5 {[%emt 0:00:13]} 2. Nf3 {[%emt 0:00:06]} Nc6 {[%emt 0:00:07]} 3. Bb5 {[%emt 0:00:13]} a6 {[%emt 0:00:16]} 4. Ba4 {[%emt 0:00:07]} Nf6 {[%emt 0:00:09][%cal Bg8f6,Bf6e4,Be4c5][%mdl 32]} 5. O-O {[%emt 0:01:09]} Nxe4 {[%emt 0:00:19]} 6. d4 {[%emt 0:00:08]} b5 {[%emt 0:00:10]} 7. Bb3 {[%emt 0:00:04]} d5 {[%emt 0:00:09]} 8. dxe5 {[%emt 0:00:06]} Be6 {[%emt 0:00:12]} 9. Nbd2 {[%emt 0:00:35]} Be7 {[%emt 0:02:21]} 10. Re1 {[%emt 0:02:56]} Nc5 {[%emt 0:02:29]} 11. c3 {[%emt 0:00:05]} O-O {[%emt 0:02:37]} 12. Bc2 {[%emt 0:00:03]} d4 {[%emt 0:02:16] C83: Open Ruy Lopez: 9 c3 Be7.} 13. Nb3 {[%emt 0:00:55] Nxc5 is the strong threat.} d3 {[%emt 0:02:03]} (13... dxc3 $1 $15 14. bxc3 Qxd1 15. Rxd1 Na4) 14. Bb1 $14 {[%emt 0:00:05]} Nxb3 {[%emt 0:00:33] White is slightly better.} 15. axb3 {[%emt 0:00:04]} Bf5 {[%emt 0:00:15] [#]} 16. Be3 $146 {[%emt 0:00:05]} ({Predecessor:} 16. b4 Qd7 17. h3 Rfd8 18. g4 Bg6 19. Bf4 a5 20. bxa5 Nxa5 21. e6 fxe6 22. Ne5 {1-0 (57) Clarke,B (2445)-Mason,D (2070) South Normanton 2019}) 16... Qd5 {[%emt 0:01:07]} 17. Bd4 {[%emt 0:00:25]} Rfd8 {[%emt 0:01:59]} 18. Re3 {[%emt 0:00:43]} Nxd4 {[%emt 0:01:13]} 19. cxd4 {[%emt 0:02:56]} c5 {[%emt 0:01:45]} 20. Bxd3 {[%emt 0:00:06]} cxd4 {[%emt 0:00:43]} 21. Re2 {[%emt 0:00:04]} Qe6 {[%emt 0:01:35]} 22. Qb1 {[%emt 0:01:59]} ({Much worse is} 22. Bxf5 Qxf5 23. Rd2 (23. Nxd4 Qf4 $15) 23... d3 $17) 22... Bxd3 {[%emt 0:01:45]} 23. Qxd3 {[%emt 0:00:10]} Rac8 {[%emt 0:04:37]} 24. h4 {[%emt 0:00:37]} h6 {[%emt 0:10:47]} 25. Rd1 {[%emt 0:00:51]} Bc5 {[%emt 0:04:13]} 26. g3 {[%emt 0:15:40]} Rd5 {[%emt 0:07:54]} 27. Rc1 {[%emt 0:06:42]} Ba7 {[%emt 0:08:10]} 28. Rxc8+ {[%emt 0:00:25]} Qxc8 {[%emt 0:00:06]} 29. e6 {[%emt 0:02:53]} fxe6 {[%emt 0:04:03]} 30. Qg6 {[%emt 0:03:06]} Rd6 {[%emt 0:07:59]} 31. Ne5 {[%emt 0:16:02]} d3 {[%emt 0:05:01] Prevents Rc2.} 32. Ng4 {[%emt 0:17:25] Black must now prevent Nxh6+.} Kh8 {[%emt 0:16:01]} 33. Nf6 $2 {[%emt 0:04:09][%mdl 8192]} gxf6 $19 {[%emt 0:02:11]} 34. Qxf6+ {[%emt 0:00:04]} Kh7 {[%emt 0:01:18]} 35. Qf7+ {[%emt 0:00:36]} Kh8 {[%emt 0:00:06]} 36. Qf6+ {[%emt 0:00:13] [#]} Kh7 $2 {[%emt 0:04:54]} (36... Kg8 $1 $19 37. Re4 {[#]} Bxf2+ $1 {[%mdl 512]} 38. Kxf2 Qc5+ 39. Kf3 Qc6) 37. Qf7+ $11 {[%emt 0:00:11]} Kh8 {[%emt 0:00:05] Weighted Error Value: White=0.25 (precise) /Black=0.33} 1/2-1/2

[Event "Czech Open-GM 2022"]
[Site "Pardubice"]
[Date "2022.07.26"]
[Round "5.20"]
[White "Skytte, Rasmus"]
[Black "Jirousek, Jan"]
[Result "1-0"]
[ECO "B11"]
[WhiteElo "2349"]
[BlackElo "2094"]
[Annotator "TA"]
[PlyCount "99"]
[EventDate "2022.07.22"]
[EventType "swiss"]
[EventCountry "CZE"]
[SourceTitle "playchess.com"]
[Source "ChessBase"]
[SourceQuality "1"]
[TimeControl "40/5400+30:1800+30"]

{[%evp 10,98,22,6,16,11,39,37,38,38,31,20,24,24,35,17,24,22,24,18,15,17,24,11,9,5,0,2,29,21,21,21,45,45,45,45,79,64,194,195,195,186,203,56,79,72,166,143,141,160,162,103,99,76,76,76,73,81,86,93,92,75,75,74,72,47,144,129,124,135,191,204,213,188,236,208,641,637,1330,1323,1201,1246,1081,879,29996,29997,29997,29998,29998,29999,29999]} 1. e4 {[%emt 0:00:00]} c6 {[%emt 0:00:00]} 2. Nc3 {[%emt 0:00:04]} d5 {[%emt 0:00:00]} 3. Nf3 {[%emt 0:00:30]} Bg4 {[%emt 0:00:20]} 4. h3 {[%emt 0:00:20]} Bxf3 {[%emt 0:00:08]} 5. Qxf3 {[%emt 0:00:08]} e6 {[%emt 0:00:38]} 6. Be2 {[%emt 0:01:08]} Nf6 {[%emt 0:01:18] B11: Caro-Kann: Two Knights Variation.} 7. O-O {[%emt 0:00:37]} dxe4 {[%emt 0:05:18]} 8. Nxe4 {[%emt 0:01:13]} Nxe4 {[%emt 0:00:25] White is slightly better.} 9. Qxe4 {[%emt 0:01:00]} Nd7 {[%emt 0:01:04]} 10. d4 {[%emt 0:06:00]} Nf6 {[%emt 0:00:27]} 11. Qd3 {[%emt 0:02:13]} Be7 {[%emt 0:02:10]} 12. Bf3 {[%emt 0:02:26]} O-O {[%emt 0:01:04]} 13. Rd1 {[%emt 0:06:26]} Qc7 {[%emt 0:02:52]} 14. Qe2 {[%emt 0:07:49]} Rad8 {[%emt 0:02:48]} 15. c4 {[%emt 0:01:06]} Rd7 {[%emt 0:01:53]} 16. b3 {[%emt 0:02:27]} Rfd8 {[%emt 0:01:42][%cal Oe7c5]} 17. Bb2 {[%emt 0:06:54] [#]} h6 $146 {[%emt 0:08:53]} ({Predecessor:} 17... a5 18. Bc3 Bb4 19. Bb2 Be7 20. Bc3 Bb4 21. Bb2 Be7 22. Bc3 Bb4 23. Bb2 Be7 {½-½ (23) Havasi,G (2319)-Ruck,R (2562) Zalakaros 2015}) 18. Rac1 {[%emt 0:07:21]} Qf4 {[%emt 0:08:00]} 19. g3 {[%emt 0:01:56]} Qf5 {[%emt 0:01:32]} 20. Kg2 {[%emt 0:03:57]} Qa5 {[%emt 0:03:43]} (20... h5 {is more complex.} 21. h4 a5 22. Qe1 g6) 21. a3 {[%emt 0:02:42]} Qb6 {[%emt 0:04:09]} 22. b4 {[%emt 0:02:19]} a6 {[%emt 0:00:43]} 23. Bc3 {[%emt 0:02:57]} Nh7 {[%emt 0:10:53]} ({Black should try} 23... Rc8 $14) 24. d5 $1 $18 {[%emt 0:04:17]} cxd5 {[%emt 0:05:18]} 25. Bd4 {[%emt 0:04:33]} Qd6 {[%emt 0:07:57]} 26. Bc5 {[%emt 0:08:56]} (26. cxd5 $18 {Strongly threatening Bc5.} Ng5 27. Bc5) 26... Qb8 $14 {[%emt 0:00:45]} 27. Bb6 {[%emt 0:02:46] And now cxd5 would win.} Rc8 {[%emt 0:03:39]} (27... Rf8 $16 {was called for.}) 28. cxd5 $18 {[%emt 0:00:21]} Rxc1 {[%emt 0:02:33]} 29. Rxc1 {[%emt 0:00:58]} Nf8 {[%emt 0:02:13]} 30. Qc4 {[%emt 0:10:08]} (30. Rd1 $18 {Black must now prevent dxe6.} Qc8 31. Qe4) 30... Bd8 {[%emt 0:04:07]} 31. dxe6 {[%emt 0:01:40] White is more active.} Nxe6 {[%emt 0:04:55]} 32. Qc8 {[%emt 0:01:41]} Qxc8 {[%emt 0:00:41]} 33. Rxc8 {[%emt 0:00:10] Bg4 is the strong threat.} Kh7 {[%emt 0:01:11] [#]} 34. Be3 {[%emt 0:02:19]} Bg5 {[%emt 0:05:42]} 35. Be4+ {[%emt 0:01:58]} g6 {[%emt 0:00:12]} 36. f4 {[%emt 0:01:01]} Bf6 {[%emt 0:02:04]} 37. f5 {[%emt 0:01:51]} (37. Rb8 $5 {[%cal Rb8b7]}) 37... Nd4 {[%emt 0:02:46]} (37... gxf5 $14 38. Bxf5+ Kg7) 38. fxg6+ $16 {[%emt 0:01:24]} fxg6 {[%emt 0:00:24]} 39. Rb8 {[%emt 0:03:32]} Nf5 {[%emt 0:04:45] [#]} (39... Nc6 $16 40. Re8 Nd8) 40. Bf4 $1 $18 {[%emt 0:00:28]} Bb2 {[%emt 0:00:40]} 41. Bxb7 {[%emt 0:30:46]} Bxa3 {[%emt 0:08:20]} (41... Kg7 $142 42. Bc8 (42. Bxa6 g5 $16) 42... Rf7 43. Bxa6 g5) 42. Bxa6 {[%emt 0:00:00]} Ne7 $2 {[%emt 0:07:30]} (42... Bb2 43. Rb7 Rxb7 44. Bxb7 Bc3) 43. Bb5 {[%emt 0:00:00] A strong pair of Bishops.} Rd4 {[%emt 0:05:33]} 44. Be5 {[%emt 0:00:00][%csl Ge5][%cal Rb8h8]} ({Weaker is} 44. Rb7 Bxb4 45. Be5 Rd2+ 46. Kf3 Rd8 $18) 44... Rd2+ {[%emt 0:00:02]} 45. Kf3 {[%emt 0:00:00][%csl Ge5][%cal Rb8h8]} g5 {[%emt 0:00:19]} 46. Bc3 {[%emt 0:00:00] Intending Rh8+ and mate.} Rd5 {[%emt 0:02:58]} 47. Rh8+ {[%emt 0:00:00] White mates.} Kg6 {[%emt 0:00:05]} 48. Be8+ {[%emt 0:00:00]} Kf5 {[%emt 0:00:07]} 49. Rf8+ {[%emt 0:00:00]} Ke6 {[%emt 0:00:06]} 50. Rf6# {[%emt 0:00:00] Weighted Error Value: White=0.14 (very precise) /Black=0.49} 1-0

[Event "Czech Open-GM 2022"]
[Site "Pardubice"]
[Date "2022.07.26"]
[Round "5.21"]
[White "Lokander, Martin"]
[Black "Hrbek, Stepan"]
[Result "1/2-1/2"]
[ECO "D36"]
[WhiteElo "2483"]
[BlackElo "2272"]
[Annotator "TA"]
[PlyCount "57"]
[EventDate "2022.07.22"]
[EventType "swiss"]
[EventCountry "CZE"]
[SourceTitle "playchess.com"]
[Source "ChessBase"]
[SourceQuality "1"]
[TimeControl "40/5400+30:1800+30"]

{[%evp 19,57,29,30,16,16,4,5,1,3,15,30,24,28,15,41,0,20,-7,22,0,0,0,18,12,19,0,12,6,19,0,0,0,0,0,0,0,0,0,0,0]} 1. d4 {[%emt 0:02:11]} d5 {[%emt 0:00:14]} 2. c4 {[%emt 0:00:06]} e6 {[%emt 0:00:06]} 3. Nc3 {[%emt 0:00:43]} Nf6 {[%emt 0:00:11]} 4. cxd5 {[%emt 0:00:20]} exd5 {[%emt 0:00:15]} 5. Bg5 {[%emt 0:00:04]} c6 {[%emt 0:00:10]} 6. Qc2 {[%emt 0:00:07]} Be7 {[%emt 0:00:07]} 7. e3 {[%emt 0:00:05]} Nbd7 {[%emt 0:00:20]} 8. Bd3 {[%emt 0:00:05]} O-O {[%emt 0:00:21]} 9. Nf3 {[%emt 0:03:20]} h6 {[%emt 0:02:55]} 10. Bh4 {[%emt 0:02:10]} Re8 {[%emt 0:02:59]} 11. Nd2 {[%emt 0:04:19] D36: Queen's Gambit Declined: Exchange Variation: Main line (5 Bg5 c6 6 Qc2).} c5 {[%emt 0:05:57] [#]} 12. dxc5 $146 {[%emt 0:06:42]} ({Predecessor:} 12. Nf3 a6 13. dxc5 Nxc5 14. O-O Bg4 15. Nd4 Rc8 16. Nf5 Bf8 17. h3 Nxd3 18. Qxd3 Bxf5 19. Qxf5 {1-0 (29) Keymer,V (2568)-Piceu,T (2347) Karlsruhe 2020}) 12... Nxc5 {[%emt 0:12:13] [#] And now ...d4 would win.} 13. Nf3 {[%emt 0:04:28][%cal Bd2f3,Bf3d4,Bd4b3][%mdl 32]} Nxd3+ {[%emt 0:02:03]} (13... g5 $5 14. Bg3 Nfe4 $11) 14. Qxd3 {[%emt 0:02:10]} Qb6 {[%emt 0:02:11]} 15. O-O {[%emt 0:00:36]} Be6 {[%emt 0:04:45]} (15... Qxb2 {feels hotter.} 16. Bxf6 Bxf6 17. Nxd5 Bg4) 16. Nd4 {[%emt 0:01:05]} a6 {[%emt 0:02:40]} 17. Nb3 {[%emt 0:07:13] Pair of Knights!} Rac8 {[%emt 0:08:08] The position is equal.} 18. Rfd1 {[%emt 0:04:08]} Red8 {[%emt 0:00:24][%cal Od5d4]} 19. Qd4 {[%emt 0:01:51]} Qxd4 {[%emt 0:02:52]} 20. Nxd4 {[%emt 0:01:17]} Rc4 {[%emt 0:06:15]} 21. h3 {[%emt 0:04:12]} Rdc8 {[%emt 0:01:17]} 22. Rd3 {[%emt 0:00:44]} g5 {[%emt 0:07:10]} 23. Bg3 {[%emt 0:00:05]} b5 {[%emt 0:00:12]} 24. Rad1 {[%emt 0:02:58]} Ne4 {[%emt 0:04:33][%cal Re4c3]} 25. Nce2 {[%emt 0:13:40]} Nc5 {[%emt 0:02:17]} 26. R3d2 {[%emt 0:00:10] [#] Strongly threatening b3.} Ne4 {[%emt 0:00:26]} 27. Rd3 {[%emt 0:00:05]} Nc5 {[%emt 0:01:35]} 28. R3d2 {[%emt 0:06:35] Black must now prevent b3.} Ne4 {[%emt 0:00:50]} 29. Rd3 {[%emt 0:00:05] A balanced but interesting game.  Weighted Error Value: White=0.11 (very precise) /Black=0.08 (flawless)} 1/2-1/2

[Event "Czech Open-GM 2022"]
[Site "Pardubice"]
[Date "2022.07.26"]
[Round "5.22"]
[White "Horak, Martin"]
[Black "Haring, Filip"]
[Result "0-1"]
[ECO "D37"]
[WhiteElo "2238"]
[BlackElo "2451"]
[Annotator "TA"]
[PlyCount "80"]
[EventDate "2022.07.22"]
[EventType "swiss"]
[EventCountry "CZE"]
[SourceTitle "playchess.com"]
[Source "ChessBase"]
[SourceQuality "1"]
[TimeControl "40/5400+30:1800+30"]

{[%evp 9,79,15,13,5,23,16,15,0,13,11,28,31,27,26,29,28,31,0,1,6,32,11,8,0,2,0,0,0,0,0,2,10,6,0,2,0,0,0,0,0,12,0,0,0,0,0,0,0,0,0,0,0,0,0,0,-442,-443,-432,-427,-408,-406,-375,0,0,0,-4950,-2161,-29983,-29984,-29986,-29987,-29999]} 1. d4 {[%emt 0:00:05]} Nf6 {[%emt 0:00:11]} 2. c4 {[%emt 0:00:13]} e6 {[%emt 0:00:08]} 3. Nf3 {[%emt 0:00:18]} d5 {[%emt 0:01:32]} 4. Nc3 {[%emt 0:00:33]} a6 {[%emt 0:01:23]} 5. c5 {[%emt 0:03:44]} Be7 {[%emt 0:14:16]} 6. Bf4 {[%emt 0:06:34] D37: Queen's Gambit Declined: 5 Bf4.} Nh5 {[%emt 0:02:15]} 7. e3 {[%emt 0:04:08]} O-O {[%emt 0:09:38]} 8. Bd3 {[%emt 0:03:13] The position is equal.} Nxf4 {[%emt 0:01:46]} 9. exf4 {[%emt 0:00:07]} Nc6 {[%emt 0:07:23]} 10. a3 {[%emt 0:10:06][%cal Ba2a3,Ba3b4,Bb4c5][%mdl 32]} a5 {[%emt 0:04:30]} 11. O-O {[%emt 0:05:03] [#]} Bd7 $146 {[%emt 0:04:57]} ({Predecessor:} 11... Bf6 12. Re1 b6 13. cxb6 cxb6 14. Rc1 Bd7 15. Ne5 g6 16. Bb5 Nxe5 17. fxe5 Bg5 {½-½ (46) Xu,Y (2541)-Pang,T (2328) Daqing 2018}) 12. Rb1 {[%emt 0:06:31]} b6 {[%emt 0:03:24]} 13. b4 {[%emt 0:01:15]} axb4 {[%emt 0:00:07]} 14. axb4 {[%emt 0:00:06]} bxc5 {[%emt 0:09:26]} 15. bxc5 {[%emt 0:03:09]} Bf6 {[%emt 0:00:10]} 16. Bb5 {[%emt 0:15:10]} Ne7 {[%emt 0:11:19]} 17. Bd3 {[%emt 0:03:40]} Ra3 {[%emt 0:03:06]} 18. Qc2 {[%emt 0:02:48]} g6 {[%emt 0:01:38]} 19. Ra1 {[%emt 0:01:53]} Rxa1 {[%emt 0:01:55]} 20. Rxa1 {[%emt 0:00:05]} Nc6 {[%emt 0:00:23]} 21. Ne2 {[%emt 0:03:46]} Qb8 {[%emt 0:03:57]} 22. Rb1 {[%emt 0:02:35]} Qa7 {[%emt 0:00:30]} 23. Bb5 {[%emt 0:02:22]} Rb8 {[%emt 0:06:10][%cal Ob8b5]} 24. h3 {[%emt 0:05:23]} Kg7 {[%emt 0:04:25]} 25. Bxc6 {[%emt 0:02:02]} Bxc6 {[%emt 0:00:10]} 26. Rxb8 {[%emt 0:01:40]} Qxb8 {[%emt 0:00:04]} 27. Ne5 {[%emt 0:00:14]} Be8 {[%emt 0:01:29]} 28. Qd2 {[%emt 0:02:04]} Qb1+ {[%emt 0:01:41]} 29. Kh2 {[%emt 0:00:15]} h5 {[%emt 0:01:24]} 30. Qe3 {[%emt 0:02:15]} Qc2 {[%emt 0:00:58]} 31. g4 {[%emt 0:01:26]} Bb5 {[%emt 0:03:12]} 32. Ng1 {[%emt 0:06:06][%mdl 8192]} (32. Nc3 $11 {and White is okay.} Be8 33. Nf3) 32... Bh4 $19 {[%emt 0:00:41]} 33. Kg2 {[%emt 0:03:42] [#]} Qd1 $1 {[%emt 0:00:05]} 34. Nef3 {[%emt 0:01:27]} Qf1+ {[%emt 0:00:07]} 35. Kh1 {[%emt 0:00:30]} Bxf2 {[%emt 0:01:08] This bishop pair is nice.} (35... Qxf2 $19 36. Qd2 Qxd2 37. Nxd2 Bg3) 36. Qe5+ $11 {[%emt 0:00:06]} Kg8 {[%emt 0:00:29] ( -> ...hxg4)} 37. gxh5 {[%emt 0:00:13][%mdl 8192] [#]} (37. Qxc7 $11 hxg4 38. Qb8+ Kh7 39. Ng5+ Kg7 40. Qe5+ Kf8 41. Qd6+ Ke8 42. Qb8+ Ke7 43. Qd6+ Kf6 44. Qe5+ Ke7 45. Qd6+ Kf6 46. Qe5+ Ke7 47. Qd6+) 37... Bxg1 $19 {[%emt 0:01:01]} 38. Nxg1 {[%emt 0:00:25]} Bd3 {[%emt 0:00:11] Black mates.} 39. Qe3 {[%emt 0:00:37]} Be4+ {[%emt 0:00:05]} 40. Kh2 {[%emt 0:00:04]} Qg2# {Weighted Error Value: White=0.50/Black=0.14 (very precise)} 0-1